fUSD/lending_fUSD_20240831
["ID","MTS","AMOUNT","RATE_DAILY","PERIOD"]
[336731733,1725085416837,-500.0,0.00043835,120]
[336731734,1725085416888,-1577.57,0.00043835,120]
[336731735,1725085416942,-927.35,0.00043835,120]
[336731736,1725085416991,-1633.84,0.00043835,120]
[336731737,1725085417039,-500.0,0.00043835,120]
[336731738,1725085417088,-500.0,0.00043835,120]
[336731739,1725085417141,-500.0,0.00043835,120]
[336731740,1725085417200,-500.0,0.00043835,120]
[336731741,1725085417248,-500.0,0.00043835,120]
[336731742,1725085417298,-500.0,0.00043835,120]
[336731743,1725085417345,-1255.1,0.00043835,120]
[336731744,1725085417396,-961.72,0.00043835,120]
[336731745,1725085417446,-553.73,0.00043835,120]
[336731746,1725085417496,-793.38,0.00043835,120]
[336731747,1725085417551,-2218.72,0.00043835,120]
[336731748,1725085417607,-1344.82,0.00043835,120]
[336731749,1725085417661,-500.0,0.00043835,120]
[336731750,1725085417715,-500.0,0.00043835,120]
[336731751,1725085417772,-846.91,0.00043835,120]
[336731752,1725085417825,-500.0,0.00043835,120]
[336731753,1725085417874,-1968.84,0.00043835,120]
[336731754,1725085417929,-500.0,0.00043835,120]
[336731755,1725085417980,-1518.96,0.00043835,120]
[336731756,1725085418035,-1835.9,0.00043835,120]
[336731757,1725085418092,-1044.01,0.00043835,120]
[336731758,1725085418142,-603.33,0.00043835,120]
[336731759,1725085418195,-805.02,0.00043835,120]
[336731760,1725085418250,-2179.57,0.00043835,120]
[336731761,1725085418304,-1640.29,0.00043835,120]
[336731762,1725085418357,-1667.23,0.00043835,120]
[336731763,1725085418416,-500.0,0.00043835,120]
[336731764,1725085418471,-1646.21,0.00043835,120]
[336731765,1725085418525,-591.32,0.00043835,120]
[336731766,1725085418577,-795.81,0.00043835,120]
[336731767,1725085418629,-877.02,0.00043835,120]
[336731768,1725085418681,-2067.77,0.00043835,120]
[336731769,1725085418736,-608.39,0.00043835,120]
[336731770,1725085418788,-1275.11,0.00043835,120]
[336731771,1725085418842,-500.0,0.00043835,120]
[336731772,1725085418896,-572.01,0.00043835,120]
[336731773,1725085418951,-500.0,0.00043835,120]
[336731774,1725085419008,-1704.35,0.00043835,120]
[336731775,1725085419061,-844.24,0.00043835,120]
[336731776,1725085419110,-606.37,0.00043835,120]
[336731777,1725085419161,-1379.1,0.00043835,120]
[336731778,1725085419208,-2069.4,0.00043835,120]
[336731779,1725085419257,-500.0,0.00043835,120]
[336731780,1725085419483,-573.28,0.00043835,120]
[336731781,1725085419533,-1830.7,0.00043835,120]
[336731782,1725085419584,-936.23,0.00043835,120]
[336731783,1725085419637,-505.41,0.00043835,120]
[336731784,1725085419688,-320.66420386,0.00043835,120]
[336731785,1725085419737,-565.82,0.00043835,120]
[336731786,1725085419788,-500.0,0.00043835,120]
[336731787,1725085419837,-500.0,0.00043835,120]
[336731788,1725085419884,-802.68,0.00043835,120]
[336731789,1725085419933,-1846.73,0.00043835,120]
[336731790,1725085419982,-500.0,0.00043835,120]
[336731791,1725085420030,-500.0,0.00043835,120]
[336731792,1725085420080,-1624.05,0.00043835,120]
[336731793,1725085420129,-709.12,0.00043835,120]
[336731794,1725085420176,-508.15,0.00043835,120]
[336731795,1725085420224,-1465.91,0.00043835,120]
[336731796,1725085420276,-1707.44,0.00043835,120]
[336731797,1725085420328,-500.0,0.00043835,120]
[336731798,1725085420378,-829.84,0.00043835,120]
[336731799,1725085420438,-500.0,0.00043835,120]
[336731800,1725085420490,-695.91,0.00043835,120]
[336731801,1725085420542,-508.01,0.00043835,120]
[336731802,1725085420596,-500.0,0.00043835,120]
[336731803,1725085420654,-500.0,0.00043835,120]
[336731804,1725085420704,-1694.24,0.00043835,120]
[336731805,1725085420753,-1329.5,0.00043835,120]
[336731806,1725085420806,-1254.74,0.00043835,120]
[336731807,1725085420855,-500.0,0.00043835,120]
[336731808,1725085420905,-701.74,0.00043835,120]
[336731809,1725085420960,-1718.9,0.00043835,120]
[336731810,1725085421013,-500.0,0.00043835,120]
[336731811,1725085421064,-536.3,0.00043835,120]
[336731812,1725085421116,-500.0,0.00043835,120]
[336731813,1725085421172,-1416.58,0.00043835,120]
[336731814,1725085421223,-1344.35,0.00043835,120]
[336731815,1725085421273,-500.0,0.00043835,120]
[336731816,1725085421325,-1308.79,0.00043835,120]
[336731817,1725085421376,-1065.87,0.00043835,120]
[336731818,1725085421423,-598.48,0.00043835,120]
[336731819,1725085421472,-934.02,0.00043835,120]
[336731820,1725085421519,-1376.61,0.00043835,120]
[336731821,1725085421567,-1682.93,0.00043835,120]
[336731822,1725085421617,-546.73,0.00043835,120]
[336731823,1725085421666,-1537.85,0.00043835,120]
[336731824,1725085421713,-1026.63,0.00043835,120]
[336731825,1725085421759,-500.0,0.00043835,120]
[336731826,1725085421806,-1312.14,0.00043835,120]
[336731827,1725085421851,-500.0,0.00043835,120]
[336731828,1725085421896,-1653.03,0.00043835,120]
[336731829,1725085421944,-500.0,0.00043835,120]
[336731830,1725085421994,-802.15,0.00043835,120]
[336731831,1725085422042,-522.63,0.00043835,120]
[336731832,1725085422093,-500.0,0.00043835,120]
[336731833,1725085422143,-500.0,0.00043835,120]
[336731834,1725085422191,-520.04,0.00043835,120]
[336731835,1725085422242,-1148.46,0.00043835,120]
[336731836,1725085422294,-795.3,0.00043835,120]
[336731837,1725085422345,-554.41,0.00043835,120]
[336731838,1725085422395,-500.0,0.00043835,120]
[336731839,1725085422445,-1325.16,0.00043835,120]
[336731840,1725085422496,-1311.27,0.00043835,120]
[336731841,1725085422547,-1407.95,0.00043835,120]
[336731842,1725085422596,-1863.91,0.00043835,120]
[336731843,1725085422648,-1652.24,0.00043835,120]
[336731844,1725085422699,-641.76,0.00043835,120]
[336731845,1725085422748,-500.0,0.00043835,120]
[336731846,1725085422796,-854.31,0.00043835,120]
[336731847,1725085422844,-527.05,0.00043835,120]
[336731848,1725085422889,-500.0,0.00043835,120]
[336731849,1725085422939,-616.77,0.00043835,120]
[336731850,1725085422989,-2261.76,0.00043835,120]
[336731851,1725085423038,-956.29,0.00043835,120]
[336731852,1725085423085,-675.48,0.00043835,120]
[336731853,1725085423136,-500.0,0.00043835,120]
[336731854,1725085423186,-500.0,0.00043835,120]
[336731855,1725085423236,-979.96,0.00043835,120]
[336731856,1725085423292,-532.04,0.00043835,120]
[336731857,1725085423350,-1078.05,0.00043835,120]
[336731858,1725085423406,-1968.69,0.00043835,120]
[336731859,1725085423464,-528.35,0.00043835,120]
[336731860,1725085423516,-261.30941453,0.00043835,120]
[336731861,1725085423569,-500.0,0.00043835,120]
[336731862,1725085423625,-1332.09,0.00043835,120]
[336731863,1725085423679,-500.0,0.00043835,120]
[336731864,1725085423732,-876.79,0.00043835,120]
[336731865,1725085423787,-1367.12,0.00043835,120]
[336731866,1725085423843,-484.8428254,0.00043835,120]
[336731867,1725085423901,-2989.98,0.00043835,120]
[336731868,1725085423954,-1307.87,0.00043835,120]
[336731869,1725085424007,-500.0,0.00043835,120]
[336731870,1725085424055,-1296.01,0.00043835,120]
[336731871,1725085424106,-1533.32,0.00043835,120]
[336731872,1725085424156,-214.5546561,0.00043835,120]
[336731873,1725085424205,-500.0,0.00043835,120]
[336731874,1725085424253,-600.74,0.00043835,120]
[336731875,1725085424306,-5814.25,0.00043835,120]
[336731876,1725085424357,-629.87,0.00043835,120]
[336731877,1725085424408,-1062.71,0.00043835,120]
[336731878,1725085424462,-533.34,0.00043835,120]
[336731879,1725085424517,-1824.21,0.00043835,120]
[336731880,1725085424572,-1015.22,0.00043835,120]
[336731881,1725085424628,-500.0,0.00043835,120]
[336731882,1725085424683,-951.23,0.00043835,120]
[336731883,1725085424738,-5481.44,0.00043835,120]
[336731884,1725085424983,-894.49,0.00043835,120]
[336731885,1725085425039,-842.88,0.00043835,120]
[336731886,1725085425095,-677.22,0.00043835,120]
[336731887,1725085425148,-1186.34,0.00043835,120]
[336731888,1725085425200,-767.11,0.00043835,120]
[336731889,1725085425251,-5075.61,0.00043835,120]
[336731890,1725085425302,-862.19,0.00043835,120]
[336731891,1725085425353,-528.15,0.00043835,120]
[336731892,1725085425404,-825.37,0.00043835,120]
[336731893,1725085425456,-1753.96,0.00043835,120]
[336731894,1725085425508,-2000.96,0.00043835,120]
[336731895,1725085425560,-1653.61,0.00043835,120]
[336731896,1725085425613,-562.28,0.00043835,120]
[336731897,1725085425666,-500.0,0.00043835,120]
[336731898,1725085425722,-1013.59,0.00043835,120]
[336731899,1725085425772,-1776.62,0.00043835,120]
[336731900,1725085425824,-500.0,0.00043835,120]
[336731901,1725085425884,-3910.3,0.00043835,120]
[336731902,1725085425940,-1570.05,0.00043835,120]
[336731903,1725085425996,-764.94,0.00043835,120]
[336731904,1725085426056,-500.0,0.00043835,120]
[336731905,1725085426113,-500.0,0.00043835,120]
[336731906,1725085426171,-500.0,0.00043835,120]
[336731907,1725085426226,-500.0,0.00043835,120]
[336731908,1725085426283,-500.0,0.00043835,120]
[336731909,1725085426341,-883.9,0.00043835,120]
[336731910,1725085426397,-696.93,0.00043835,120]
[336731911,1725085426454,-500.0,0.00043835,120]
[336731912,1725085426511,-500.0,0.00043835,120]
[336731913,1725085426575,-1372.32,0.00043835,120]
[336731914,1725085426633,-500.0,0.00043835,120]
[336731915,1725085426685,-833.92,0.00043835,120]
[336731916,1725085426740,-664.41,0.00043835,120]
[336731917,1725085426794,-1438.05,0.00043835,120]
[336731918,1725085426845,-500.0,0.00043835,120]
[336731919,1725085426899,-863.53,0.00043835,120]
[336731920,1725085426956,-785.33,0.00043835,120]
[336731921,1725085427009,-1603.72,0.00043835,120]
[336731922,1725085427059,-500.0,0.00043835,120]
[336731923,1725085427109,-500.0,0.00043835,120]
[336731924,1725085427163,-2224.87,0.00043835,120]
[336731925,1725085427214,-500.0,0.00043835,120]
[336731926,1725085427266,-1322.92,0.00043835,120]
[336731927,1725085427323,-500.0,0.00043835,120]
[336731928,1725085427378,-2404.44,0.00043835,120]
[336731929,1725085427430,-901.41,0.00043835,120]
[336731930,1725085427484,-610.01,0.00043835,120]
[336731931,1725085427538,-729.12,0.00043835,120]
[336731932,1725085427591,-500.0,0.00043835,120]
[336731933,1725085427648,-1979.21,0.00043835,120]
[336731934,1725085427701,-577.81,0.00043835,120]
[336731935,1725085427755,-500.0,0.00043835,120]
[336731936,1725085427807,-6226.26,0.00043835,120]
[336731937,1725085427858,-666.11,0.00043835,120]
[336731938,1725085427906,-603.36689029,0.00043835,120]
[336731939,1725085427961,-500.0,0.00043835,120]
[336731940,1725085428009,-2083.88,0.00043835,120]
[336731941,1725085428057,-2247.13,0.00043835,120]
[336731942,1725085428109,-3075.22,0.00043835,120]
[336731943,1725085428162,-2368.94,0.00043835,120]
[336731944,1725085428211,-1059.18075555,0.00043836,120]
[336731945,1725085428261,-150.0,0.00043909,120]
[336731946,1725085428313,-1000.0,0.00043999,120]
[336731947,1725085428361,-631.61887573,0.00044,120]
[336731948,1725085428410,-1693.91999879,0.00044,120]
[336731949,1725085428462,-500000.0,0.00044,120]
[336731950,1725085428512,-2000.0,0.00044,120]
[336731951,1725085428563,-102870.27279357,0.00044,120]
[336731952,1725085430751,-1112.08,0.00011,2]
[336731953,1725085430772,-1143.0,0.00011678,2]
[336731954,1725085430792,-804.0,0.00011678,2]
[336731955,1725085430812,-1940.92,0.00011678,2]
[336731956,1725085442625,456.29718183,0.000109,10]
[336731957,1725085515467,-1612.51,0.00011,2]
[336731958,1725085515492,-1381.08,0.00011678,2]
[336731959,1725085515517,-247.538,0.00011678,2]
[336731960,1725085532320,-500.0,0.0001331,2]
[336731961,1725085532342,-500.0,0.00013318,2]
[336731962,1725085532363,-300.0,0.00013326,2]
[336731963,1725085532385,-500.0,0.00013327,2]
[336731964,1725085532408,-858.872,0.00013336,2]
[336731982,1725085831797,-300.0,0.00011,2]
[336731983,1725085831881,-1070.64,0.00011,2]
[336731984,1725085831891,-500.0,0.00013336,2]
[336731985,1725085831901,-500.0,0.00013345,2]
[336731986,1725085831911,-500.0,0.00013354,2]
[336731987,1725085831920,-500.0,0.00013362,2]
[336731988,1725085831929,-499.99,0.00013362,2]
[336731989,1725085831938,-1431.90886998,0.00013362,2]
[336731990,1725085831949,-1837.93590636,0.00013362,2]
[336731998,1725085837758,-4509.7,0.00013362,2]
[336731999,1725085838051,-31579.02322366,0.00013362,2]
[336732000,1725085838069,-500.0,0.00013371,2]
[336732001,1725085838083,-500.0,0.000134,2]
[336732002,1725085838092,-337.18,0.00013699,2]
[336732003,1725085838102,-1000.0,0.00013948,2]
[336732004,1725085838113,-1050.0,0.00014,2]
[336732005,1725085838122,-150.0,0.00014,2]
[336732006,1725085838132,-1500.0,0.00014846,2]
[336732007,1725085838143,-496.0,0.00015,2]
[336732008,1725085838154,-7052.0,0.00015,2]
[336732009,1725085838163,-250.0,0.00015459,2]
[336732010,1725085838173,-2751.0,0.00015849,2]
[336732011,1725085838182,-200.0,0.00015925,2]
[336732012,1725085838194,-2000.0,0.00015951,2]
[336732013,1725085838204,-1100.0,0.00016,2]
[336732014,1725085838214,-200.0,0.00016104,2]
[336732015,1725085838226,-9999.99,0.00016116,2]
[336732016,1725085838236,-500.0,0.00016356,2]
[336732017,1725085838246,-167.0,0.00016457,2]
[336732018,1725085838255,-184.69,0.00016712,2]
[336732019,1725085838265,-1000.0,0.00016826,2]
[336732020,1725085838275,-1000.0,0.00017,17]
[336732021,1725085838285,-400.0,0.00017095,2]
[336732022,1725085838295,-209.788,0.00017095,2]
[336732023,1725085838305,-2500.0,0.00017216,2]
[336732024,1725085838315,-300.0,0.00017411,2]
[336732025,1725085838325,-337.18,0.00017534,2]
[336732026,1725085838335,-420.93977412,0.00017771,2]
[336732027,1725085838345,-400.0,0.000178,6]
[336732028,1725085838354,-300.0,0.00017857,5]
[336732030,1725085838363,-285.75431792,0.0001789,2]
[336732032,1725085838374,-217.0,0.00017897,2]
[336732034,1725085838383,-496.0,0.000179,2]
[336732036,1725085838392,-900.0,0.000179,6]
[336732038,1725085838401,-2500.0,0.00017914,5]
[336732040,1725085838410,-5138.1697,0.00017973,2]
[336732041,1725085838419,-68983.741775,0.00017977,3]
[336732042,1725085838429,-219.5523972,0.00017986,2]
[336732043,1725085838438,-216806.045579,0.00017987,3]
[336732044,1725085838448,-29282.53928975,0.00017987,3]
[336732045,1725085838461,-2548.80000005,0.00017987,3]
[336732046,1725085838479,-16932.32639603,0.00017987,3]
[336732049,1725085839874,-95.67084055,0.00017987,3]
[336732050,1725085839885,-322.50000001,0.00017987,3]
[336732051,1725085839911,-1156.2,0.00017987,3]
[336732052,1725085839922,-2689.99555988,0.00017987,3]
[336732053,1725085839934,-333.81892786,0.00017987,3]
[336732054,1725085839964,-30820.28759212,0.00017987,3]
[336732055,1725085839976,-196.90062035,0.00017987,3]
[336732056,1725085839985,-152.31,0.00017987,2]
[336732057,1725085839995,-209.788,0.00017993,2]
[336732058,1725085840004,-470.98101019,0.00017993,5]
[336732211,1725085841850,-809.58788657,0.00017993,5]
[336732437,1725085844049,-1219.43110324,0.00017993,5]
[336732438,1725085844058,-269.33599999,0.00017994,2]
[336732439,1725085844068,-1000.0,0.00017995,2]
[336732440,1725085844077,-14512.75600537,0.00017997,5]
[336732441,1725085844088,-17183.03684504,0.00017997,5]
[336732442,1725085844099,-19445.34349084,0.00017997,5]
[336732443,1725085844110,-3047.90218632,0.00017997,5]
[336732444,1725085845847,-500.0,0.00017325,2]
[336732445,1725085845859,-1000.0,0.00017873,2]
[336732446,1725085845869,-1547.70344508,0.00017997,5]
[336732447,1725085845934,-3518.04920049,0.00017997,5]
[336732457,1725086196923,156.09,0.00010959,2]
[336732460,1725086729510,155.81,0.00010959,2]
[336732483,1725087031876,-415.98592689,0.00011,2]
[336732485,1725087031887,-354.51759222,0.00011,2]
[336732489,1725087031933,-301.01766694,0.00011,2]
[336732490,1725087031944,-93.51881395,0.00011,2]
[336732491,1725087031954,-500.0,0.00011556,2]
[336732492,1725087031963,-500.0,0.00011565,2]
[336732493,1725087031972,-500.0,0.00011574,2]
[336732494,1725087031982,-500.0,0.00011582,2]
[336732495,1725087031991,-500.0,0.00011591,2]
[336732496,1725087032000,-500.0,0.000116,2]
[336732497,1725087032013,-150.0,0.00012,2]
[336732498,1725087032022,-150.0,0.0001238,2]
[336732499,1725087032030,-150.309,0.0001238,2]
[336732500,1725087032039,-150.0,0.0001238,2]
[336732501,1725087032048,-150.0,0.000125,2]
[336732502,1725087032057,-150.0,0.00013,2]
[336732503,1725087032066,-499.99,0.00013,2]
[336732504,1725087032075,-150.0,0.000135,2]
[336732505,1725087032084,-224.78,0.00013699,2]
[336732506,1725087032093,-150.0,0.00014,2]
[336732507,1725087032102,-511.91941723,0.00014,2]
[336732508,1725087032114,-538.08058277,0.00014,2]
[336732509,1725087032123,-150.0,0.000145,2]
[336732510,1725087032133,-150.0,0.00015,2]
[336732511,1725087032141,-16.72825921,0.00015,2]
[336732512,1725087032152,-479.27174079,0.00015,2]
[336732513,1725087032162,-300.0,0.00015092,2]
[336732514,1725087032171,-502.75644128,0.00015094,2]
[336732515,1725087032183,-497.24355872,0.00015094,2]
[336732516,1725087032192,-150.0,0.0001538,2]
[336732517,1725087032201,-150.0,0.0001538,2]
[336732518,1725087032210,-1000.0,0.00015483,2]
[336732519,1725087032219,-227.689107,0.000155,3]
[336732520,1725087032228,-240.0,0.00015532,2]
[336732521,1725087032238,-500.0,0.00015547,2]
[336732523,1725087032247,-250.0,0.00015555,2]
[336732524,1725087032256,-200.0,0.00015593,2]
[336732525,1725087032265,-2751.0,0.00015594,2]
[336732526,1725087032274,-1100.0,0.00016,2]
[336732527,1725087032283,-1048.28046712,0.00016,2]
[336732528,1725087032299,-556.26670477,0.00016,2]
[336732529,1725087032317,-395.45282811,0.00016,2]
[336732530,1725087032327,-516.00717189,0.0001601,2]
[336732531,1725087032337,-1483.99282811,0.0001601,2]
[336732532,1725087032346,-1324.08561406,0.0001602,2]
[336732533,1725087032357,-857.30470671,0.0001602,2]
[336732534,1725087032368,-1489.93424523,0.0001602,2]
[336732535,1725087032377,-2795.42707444,0.00016116,2]
[336732536,1725087037998,-297.87,0.00016116,2]
[336732537,1725087038010,-532.18722021,0.00016116,2]
[336732538,1725087038057,-2239.86570535,0.00016116,2]
[336732539,1725087038067,-420.0,0.00016516,2]
[336732540,1725087038077,-184.69,0.00016712,2]
[336732541,1725087038087,-300.0,0.00016963,2]
[336732542,1725087038096,-494.0,0.000173,7]
[336732543,1725087038106,-1000.0,0.000173,7]
[336732544,1725087038115,-1000.0,0.00017419,2]
[336732545,1725087038125,-240.0,0.00017474,2]
[336732546,1725087038134,-1000.0,0.000175,7]
[336732547,1725087038143,-1006.0,0.000175,7]
[336732548,1725087038153,-1000.0,0.000175,8]
[336732549,1725087038162,-174.74163049,0.000175,8]
[336732550,1725087038174,-825.25836951,0.000175,8]
[336732551,1725087038184,-1000.0,0.000175,6]
[336732552,1725087038193,-300.0,0.000175,2]
[336732553,1725087038203,-224.78,0.00017534,2]
[336732554,1725087038212,-167.0,0.00017668,2]
[336732555,1725087038222,-300.0,0.000177,2]
[336732556,1725087038231,-160.28794487,0.00017715,2]
[336732557,1725087038244,-260.65182925,0.00017715,2]
[336732558,1725087038254,-700.0,0.000178,6]
[336732559,1725087038263,-217.0,0.00017897,2]
[336732560,1725087038273,-496.0,0.000179,2]
[336732561,1725087038283,-1000.0,0.000179,7]
[336732562,1725087038292,-300.0,0.000179,2]
[336732563,1725087038302,-300.0,0.000179,5]
[336732564,1725087038311,-1400.0,0.000179,6]
[336732565,1725087038321,-150.0,0.00017966,2]
[336732566,1725087038331,-500.0,0.00017973,2]
[336732567,1725087038340,-655.60870797,0.00017987,3]
[336732568,1725087038365,-463.4202856,0.00017987,3]
[336732569,1725087038378,-1185.14145906,0.00017987,3]
[336732570,1725087038391,-356.64605116,0.00017987,3]
[336732571,1725087038402,-17092.13124243,0.00017987,3]
[336732572,1725087038414,-6057.23386798,0.00017987,3]
[336732573,1725087038427,-16071.45571123,0.00017987,3]
[336732574,1725087038440,-27604.04831325,0.00017987,3]
[336732575,1725087038453,-22243.24876,0.00017987,3]
[336732576,1725087038488,-2557.30000244,0.00017987,3]
[336732577,1725087038878,-290.08119832,0.00017987,3]
[336732578,1725087038891,-3932.27750587,0.00017987,3]
[336732579,1725087039906,-561.97850452,0.00017987,3]
[336732580,1725087040086,-618.64923076,0.00017987,3]
[336732581,1725087040098,-2327.8579357,0.00017987,3]
[336732582,1725087040110,-340.78144659,0.00017987,3]
[336732583,1725087040131,-2371.47496843,0.00017987,3]
[336732584,1725087040274,-790.05048803,0.00017987,3]
[336732585,1725087040287,-1596.88006637,0.00017987,3]
[336732586,1725087040299,-1668.94830626,0.00017987,3]
[336732587,1725087040362,-1486.3419018,0.00017987,3]
[336732769,1725087044321,-2581.2614539,0.00017987,3]
[336732770,1725087044344,-23521.76724492,0.00017987,3]
[336732771,1725087044548,-505.5664408,0.00017987,3]
[336732772,1725087044560,-485.29999995,0.00017987,3]
[336732773,1725087044572,-100582.07090104,0.00017987,3]
[336732774,1725087044595,-541.68566657,0.00017987,3]
[336732775,1725087044606,-697.68583,0.00017987,3]
[336732776,1725087044618,-720.02828238,0.00017987,3]
[336732777,1725087044629,-502.49912,0.00017987,3]
[336732778,1725087044640,-1095.78215054,0.00017987,3]
[336732779,1725087044655,-11556.84791213,0.00017987,3]
[336732780,1725087044665,-2500.0,0.00017995,5]
[336732781,1725087044675,-369.7164301,0.00017996,2]
[336732782,1725087044685,-2500.0,0.00017997,5]
[336732783,1725087044695,-976.22869519,0.00017997,5]
[336732807,1725088238404,-250.0,0.00011,2]
[336732808,1725088238414,-348.818,0.00011,2]
[336732823,1725088240157,-641.472,0.00011,2]
[336732824,1725088240167,-250.0,0.00012,2]
[336732825,1725088240176,-500.0,0.00013636,2]
[336732826,1725088240186,-500.0,0.00013645,2]
[336732827,1725088240196,-500.0,0.00013654,2]
[336732828,1725088240206,-500.0,0.00013663,2]
[336732829,1725088240216,-500.0,0.00013672,2]
[336732830,1725088240225,-500.0,0.0001368,2]
[336732831,1725088240235,-500.0,0.00013689,2]
[336732832,1725088240244,-500.0,0.00013689,2]
[336732833,1725088240253,-499.99,0.00013689,2]
[336732834,1725088240263,-299.99,0.00013689,2]
[336732835,1725088240273,-1485.14,0.00013689,2]
[336732836,1725088240282,-500.0,0.00013698,2]
[336732837,1725088240291,-150.99,0.00013699,2]
[336732838,1725088240300,-179.82,0.00013699,2]
[336732839,1725088240309,-174.23,0.00013805,2]
[336732840,1725088240321,-1050.0,0.00014,2]
[336732841,1725088240331,-1143.0,0.00015,2]
[336732842,1725088240340,-496.0,0.00015,2]
[336732843,1725088240349,-250.0,0.0001555,2]
[336732844,1725088240358,-2751.0,0.00015561,2]
[336732845,1725088240367,-200.0,0.00015561,2]
[336732846,1725088240376,-500.0,0.00015619,2]
[336732847,1725088240386,-600.0,0.00015652,2]
[336732848,1725088240395,-400.0,0.00015896,2]
[336732849,1725088240404,-150.0,0.00015972,2]
[336732850,1725088240413,-1100.0,0.00016,2]
[336732851,1725088240422,-2000.0,0.00016,2]
[336732852,1725088240432,-2000.0,0.0001601,2]
[336732853,1725088240440,-3671.324566,0.0001602,2]
[336732854,1725088240450,-318.0,0.00016712,2]
[336732855,1725088240459,-184.69,0.00016712,2]
[336732856,1725088240468,-26122.0,0.00017,7]
[336732857,1725088240477,-300.0,0.00017201,2]
[336732858,1725088240486,-166.0,0.00017379,2]
[336732859,1725088240496,-600.0,0.00017609,2]
[336732860,1725088240505,-420.93977412,0.00017709,2]
[336732861,1725088240514,-800.0,0.000178,6]
[336732862,1725088240524,-400.0,0.00017883,2]
[336732863,1725088240533,-217.0,0.00017897,2]
[336732865,1725088240543,-300.0,0.000179,2]
[336732867,1725088240552,-496.0,0.000179,2]
[336732870,1725088240563,-2002.43,0.000179,5]
[336732872,1725088240573,-1600.0,0.000179,6]
[336732873,1725088240582,-500.0,0.00017986,2]
[336732875,1725088240591,-500.0,0.00017986,2]
[336732877,1725088240600,-631.65593343,0.00017986,2]
[336732879,1725088240610,-500.0,0.00017986,2]
[336732881,1725088240619,-499.99999999,0.00017986,2]
[336732883,1725088240629,-1110.28091693,0.00017986,5]
[336732885,1725088240638,-147227.59061212,0.00017987,3]
[336732888,1725088240658,-61177.00000001,0.00017987,3]
[336732924,1725088241010,-759.97293395,0.00017987,3]
[336733138,1725088244323,-266.2980342,0.00017987,3]
[336733139,1725088246412,-85550.69026045,0.00017987,3]
[336733142,1725088767319,15191.1693,0.000109,2]
[336733143,1725088970644,10065.1795,0.000109,2]
[336733144,1725089000471,156.59,0.00010959,2]
[336733171,1725089432302,-300.0,0.00010987,2]
[336733172,1725089432311,-4370.58140367,0.00010988,2]
[336733173,1725089432322,-334.50747262,0.00010988,2]
[336733174,1725089432333,-883.41898325,0.00010988,2]
[336733175,1725089432345,-3649.1702025,0.00010988,2]
[336733176,1725089432357,-350.0,0.00010988,2]
[336733177,1725089432369,-6841.42673893,0.00010988,2]
[336733178,1725089432380,-3345.67823061,0.00010988,2]
[336733179,1725089432391,-2314.4383043,0.00010988,2]
[336733180,1725089432401,-399.12662878,0.00010988,2]
[336733181,1725089432412,-19908.22283899,0.00010988,2]
[336733182,1725089432421,-1964.99501647,0.0001099,2]
[336733183,1725089432430,-841.74,0.00011,2]
[336733184,1725089432440,-1706.88138312,0.00012073,2]
[336733185,1725089432449,-420.0,0.00012073,2]
[336733186,1725089432458,-150.0,0.00013081,2]